Cogmind - Beta 14 @@@ ROGUE MODE // 2025.01.14 @ 13:31:52 Player: sxnwlfkk Result: Destroyed by ML-8JO(R) with Subdweller Laser Performance ------------- Evolutions (0) 0 Regions Visited (2) 400 Robots Destroyed (5) 25 Value Destroyed (167) 167 Prototype IDs (0) 0 Alien Tech Used (0) 0 Bonus (0) 0 TOTAL SCORE: 592 Bonus ------- None Cogmind --------- Core Integrity 0/250 Matter 300/300 Energy 99/100 System Corruption 0% Temperature Cool (6) Movement Rolling (80) Location -10/Subcaves Parts ------- > --- POWER (1) -------- (None) > --- PROPULSION (2) --- Wheel > --- UTILITY (2) ------ Small Storage Unit > --- WEAPON (2) ------- (None) > --- INVENTORY (8) ---- Ion Engine Light Ion Engine Humpback Seismic Detector Subdweller Beam Cannon Hammer Peak State ------------ > --- POWER ------------ Ion Engine > --- PROPULSION ------- Light Treads Light Treads > --- UTILITY ---------- Small Storage Unit Seismic Detector > --- WEAPON ----------- Assault Rifle Light Assault Rifle > --- INVENTORY -------- Light Ion Engine Aluminum Leg Aluminum Leg Wheel Compact Wheel EM Pulse Gun [Rating: 7] Favorites ----------- Power Ion Engine Engine Ion Engine Propulsion Light Treads Treads Light Treads Wheel Wheel Utility Small Storage Unit Device Seismic Detector Storage Small Storage Unit Protection Light Armor Plating Weapon Light Assault Rifle Ballistic Gun Light Assault Rifle Special Weapon Mining Laser Build | -11 -10 -10 ------- Run | Yrd Mat Sub Slots Evolved . | . . . Power . | . . . Propulsion . | . . . Utility . | . . . Weapon . | . . . Parts Attached 13 | 7 . 6 Power 1 | 1 . . Engine 1 | 1 . . Core . | . . . Reactor . | . . . Propulsion 4 | 2 . 2 Treads 3 | 2 . 1 Leg . | . . . Wheel 1 | . . 1 Hover . | . . . Flight . | . . . Utility 5 | 2 . 3 Device 2 | 1 . 1 Storage 1 | 1 . . Processor . | . . . Hackware . | . . . Protection 2 | . . 2 Artifact . | . . . Weapon 3 | 2 . 1 Energy Gun . | . . . Energy Cannon . | . . . Ballistic Gun 2 | 2 . . Ballistic Cannon . | . . . Launcher . | . . . Special Weapon 1 | . . 1 Impact Weapon . | . . . Slashing Weapon . | . . . Piercing Weapon . | . . . Special Melee Weapon . | . . . Unidentified Prototypes . | . . . Parts Lost 7 | . . 7 Power 1 | . . 1 Propulsion 2 | . . 2 Utility 1 | . . 1 Weapon 3 | . . 3 Highest Loss Streak 4 | . . 4 To Critical Strikes . | . . . Average Slot Usage (%) 93 | . 100 90 Engine 13 | . 14 12 Treads 24 | . 28 22 Wheel 1 | . . 2 Device 7 | . 14 4 Storage 14 | . 14 14 Protection 5 | . . 8 Ballistic Gun 25 | . 28 23 Peak Build Rating 7 | 7 7 7 Average Rating 6 | 5 7 6 On Entrance 4 | . 7 7 Naked Turns . | . . . Heaviest Build 16 | 14 14 16 Greatest Support 40 | 40 40 40 Greatest Overweight (x) 1 | 1 . 1 Average Overweight (x) . | . . . Largest Inventory Capacity 8 | 8 8 8 Average Capacity 7 | 7 8 8 Most Carried 8 | 7 8 8 Average Carried 7 | 5 7 7 Final Capacity 8 | 8 8 8 Final Carried 8 | 7 8 7 Class Distribution -------------------- 100% | Mutant Dominant Class ---------------- Mutant | -10/Materials Mutant | -10/Subcaves Resources | -11 -10 -10 ----------- Run | Yrd Mat Sub Matter Collected 407 | 236 . 171 Remotely . | . . . Salvage Created 190 | 30 . 160 Parts 17 | 5 . 12 Haulers Intercepted . | . . . Recyclers Shooed . | . . . Parts Field Recycled . | . . . Retrieved Matter . | . . . Parts Self-Destructed 14 | . . 14 Prevented . | . . . Kills | -11 -10 -10 ------- Run | Yrd Mat Sub Combat Hostiles Destroyed 4 | . . 4 Guns 4 | . . 4 Classes Destroyed 2 | 1 . 1 Tunneler 1 | 1 . . Subdweller 4 | . . 4 Best Kill Streak 1 | 1 . 1 Combat Bots Only 1 | . . 1 Max Kills in Single Turn 1 | 1 . 1 Gunslinging . | . . . Exploded . | . . . Melee . | . . . Uniques/NPCs Destroyed . | . . . Combat | -11 -10 -10 -------- Run | Yrd Mat Sub Hostile Shots Fired 85 | . . 85 Missed 30 | . . 30 Damage Taken 1132 | . . 1132 Core 250 | . . 250 Absorbed by Shields . | . . . Core Remaining (%) 100 | 100 . . Volleys Fired 29 | 4 . 25 Largest 2 | 2 . 2 Hottest 120 | 40 . 120 Shots Fired 51 | 8 . 43 Gun 50 | 8 . 42 Cannon . | . . . Launcher . | . . . Special 1 | . . 1 Kinetic 50 | 8 . 42 Thermal 1 | . . 1 Explosive . | . . . Electromagnetic . | . . . Robot Hit Streak 11 | 2 . 11 Robot Miss Streak 4 | 4 . 1 Penetration Max . | . . . Secondary Targets . | . . . Shots Hit Robots 38 | 3 . 35 Core Hits 13 | 1 . 12 Critical Kills . | . . . Critical Parts Destroyed . | . . . Critical Strikes . | . . . Melee Attacks . | . . . Impact . | . . . Slashing . | . . . Piercing . | . . . Sneak Attacks . | . . . Combat Hostiles . | . . . Follow-up Attacks . | . . . Damage Inflicted 287 | 32 . 255 Guns 287 | 32 . 255 Cannons . | . . . Explosions . | . . . Melee . | . . . Ramming . | . . . Kinetic 287 | 32 . 255 Thermal . | . . . Explosive . | . . . Electromagnetic . | . . . Impact . | . . . Slashing . | . . . Piercing . | . . . Highest Corruption . | . . . Average Corruption . | . . . Corruption Purged . | . . . Corruption Blocked . | . . . Overload Shots . | . . . Overflow Damage . | . . . Projectiles . | . . . Explosions . | . . . Melee . | . . . Knockbacks . | . . . Impact . | . . . Kinetic . | . . . Secondary . | . . . Self-Inflicted Damage . | . . . Shots . | . . . Rammed . | . . . Targets Rammed . | . . . Kicked . | . . . Crushed . | . . . Highest Temperature 252 | . . 252 Average Temperature 111 | . . 111 Received Heat Transfer 449 | . . 449 Siege Activations . | . . . Robots Corrupted . | . . . Combat Hostiles . | . . . Parts Fried . | . . . Impact Corruptions . | . . . Robots Melted . | . . . Combat Hostiles . | . . . Parts Melted . | . . . Heat Transferred . | . . . Parts Sabotaged . | . . . Parts Stolen . | . . . Parts Stripped . | . . . Power Chain Reactions . | . . . Alert | -11 -10 -10 ------- Run | Yrd Mat Sub Peak Influence 5 | 5 3 . Initial 3 | . 3 . Average 2 | 2 3 . Maximum Alert Level . | . . . Low Security (%) 100 | 100 100 . Level 1 . | . . . Level 2 . | . . . Level 3 . | . . . Level 4 . | . . . Level 5 . | . . . High Security . | . . . Max Security . | . . . Squads Dispatched . | . . . Investigation . | . . . Extermination . | . . . Reinforcement . | . . . Assault . | . . . Garrison . | . . . Intercept . | . . . Searches Triggered . | . . . Construction Impeded . | . . . Haulers Reinforced . | . . . Active Scanning Responses . | . . . Cargo Convoy Interrupts . | . . . Stealth | -11 -10 -10 --------- Run | Yrd Mat Sub Distress Signals . | . . . Communications Jammed . | . . . Distress Signals . | . . . Times Spotted 14 | . . 14 Peak Tracking Total 8 | . . 8 Tactical Retreats 2 | . . 2 Traps | -11 -10 -10 ------- Run | Yrd Mat Sub Traps Triggered . | . . . Indirectly . | . . . Trap Hack Attempts . | . . . Triggered . | . . . Disarmed . | . . . Reprogrammed . | . . . Reused . | . . . Traps Extracted . | . . . Installed . | . . . Triggered . | . . . Machines | -11 -10 -10 ---------- Run | Yrd Mat Sub Machines Disabled . | . . . Max in Single Turn . | . . . Machines Repaired . | . . . Machines Dismantled . | . . . Machines Sabotaged . | . . . Overloaded Fab Kills . | . . . Hacking | -11 -10 -10 --------- Run | Yrd Mat Sub Machines Accessed 1 | . 1 . Terminals 1 | . 1 . Fabricators . | . . . Repair Stations . | . . . Recycling Units . | . . . Scanalyzers . | . . . Garrison Access . | . . . Total Hacks 3 | . 3 . Successful . | . . . Failed 3 | . 3 . Catastrophic . | . . . Database Lockouts . | . . . Manual 3 | . 3 . Terminals 3 | . 3 . Fabricators . | . . . Repair Stations . | . . . Recycling Units . | . . . Scanalyzers . | . . . Garrison Access . | . . . Terminal Hacks . | . . . Fabricator Hacks . | . . . Repair Station Hacks . | . . . Recycling Unit Hacks . | . . . Scanalyzer . | . . . Garrison Access Hacks . | . . . Unauthorized Hacks . | . . . Terminals . | . . . Fabricators . | . . . Repair Stations . | . . . Recycling Units . | . . . Scanalyzers . | . . . Garrison Access . | . . . Data Cores Recovered . | . . . Used . | . . . Hacking Detections 1 | . 1 . Full Trace Events . | . . . Feedback Events . | . . . Feedback Blocked . | . . . Robot Schematics Acquired . | . . . Robots Built . | . . . Authchips . | . . . Time . | . . . Total Robot Build Rating . | . . . Part Schematics Acquired . | . . . Parts Built . | . . . Authchips . | . . . Time . | . . . Total Part Build Rating . | . . . Parts Repaired . | . . . Time . | . . . Parts Recycled . | . . . Recycled Matter . | . . . Retrieved Matter . | . . . Retrieved Components . | . . . Parts Scanalyzed . | . . . Part Schematics Acquired . | . . . Parts Damaged . | . . . Bothacking | -11 -10 -10 ------------ Run | Yrd Mat Sub Used RIF Installer . | . . . Robots Hacked . | . . . Non-combat . | . . . Combat . | . . . Robot Hacks Applied . | . . . Relay Couplers Released . | . . . Fabnet Peak Effective % . | . . . Robots Rewired . | . . . Allies Hacked . | . . . Hacks Repelled . | . . . Allies | -11 -10 -10 -------- Run | Yrd Mat Sub Total Allies . | . . . Largest Group . | . . . Highest-Rated Group . | . . . Highest-Rated Ally . | . . . Total Orders . | . . . Ally Attacks . | . . . Total Damage . | . . . Kills . | . . . Allies Corrupted . | . . . Allies Melted . | . . . Intel | -11 -10 -10 ------- Run | Yrd Mat Sub Robot Analysis Total . | . . . Derelict Logs Recovered . | . . . Drone Launches . | . . . Drone Recoveries . | . . . Exploration | -11 -10 -10 ------------- Run | Yrd Mat Sub Turns Passed 1135 | 120 354 661 Spaces Moved 555 | 62 114 379 Core 9 | 9 . . Treads 434 | 53 114 267 Legs . | . . . Wheels 112 | . . 112 Hover . | . . . Flight . | . . . Fastest Speed 50 | 50 160 80 Average Speed 144 | 149 160 138 Slowest Speed 160 | 160 160 160 Overloaded Moves . | . . . Propulsion Burnouts . | . . . Robots Hopped . | . . . Cave-ins Triggered . | . . . Exploration Rate (%) 18 | 5 20 29 Regions Visited 2 Branch Regions 1 Pre-discovered Areas . | . . . Known Exits Taken . | . . . Unknown Exits Taken 2 | 1 1 . Scrap Searched . | . . . Spaces Dug . | . . . Terrain Destroyed . | . . . Melee . | . . . Projectile . | . . . AOE . | . . . Terrain Rammed . | . . . Walls Destroyed . | . . . Machines Disabled . | . . . Actions | -11 -10 -10 --------- Run | Yrd Mat Sub Total 845 | 79 288 478 Wait 223 | . 164 59 Move 553 | 61 113 379 Hop . | . . . Pick Up 17 | 7 6 4 Fast Attach 7 | 7 . . Attach 5 | . . 5 Detach 1 | . . 1 Swap 1 | . . 1 Drop 9 | . 5 4 Fire 29 | 4 . 25 Melee . | . . . Ram . | . . . Kick . | . . . Crush . | . . . Escape Stasis . | . . . Rewire . | . . . Trap . | . . . Miscellaneous . | . . . Route ------- -11/Scrapyard -10/Materials -10/Subcaves (discovered 1 exit: [*Rec]) History --------- Turn | Location | Event 2 | -11/Scrapyard | Met Revision 17 20 | -11/Scrapyard | Discovered new exit (range 16) 121 | -11/Scrapyard | Entered Materials 304 | -10/Materials | Build established: Mutant 451 | -10/Materials | Discovered new exit (range 9) 475 | -10/Materials | Entered Subcaves 646 | -10/Subcaves | Discovered new exit (range 15) 1009 | -10/Subcaves | Core integrity fell below 50% 1041 | -10/Subcaves | Lost 4 parts (2n2w) 1080 | -10/Subcaves | Ambushed by Subdwellers from Twisted Machinery 1081 | -10/Subcaves | Core integrity fell below 20% 1118 | -10/Subcaves | Lost 3 parts (1p1u1w) 1136 | -10/Subcaves | Destroyed by ML-8JO(R) with Subdweller Laser Last Messages --------------- 00958_ Acquired 10 matter. 00972_ FP-SWT(R): "ECOKILL!" 00977_ Lgt. Treads destroyed. 00988_ LB-O0R(u) tweaks Twisted Machinery. 00998_ Assault Rifle destroyed. 01004_ Lgt. Treads destroyed. 01010_ Mining Laser destroyed. 01013_ LB-O0R(u) tweaks Twisted Machinery. 01018_ Critical hit (Meltdown: +260). 01018_ FP-SWT(R) destroyed. 01020_ Acquired 35 matter. 01023_ Acquired Hammer. 01026_ Acquired Sub. Beam Cannon. 01038_ Dropped Lgt. Treads. 01058_ Acquired 10 matter. 01080_ XQ-A84(R) emerges from the Twisted Machinery. 01081_ Lgt. Armor Plating destroyed. 01085_ Lgt. Assault Rifle destroyed. 01087_ Ion Engine destroyed. Map ----- +----------------------------------------------------+ | ?????????????????????????????????????????????????? | | ?????????????????????????????????????????????????? | | ?????????????????????????????????????????????????? | | ?????????????????????????????????????????????????? | | ?????????????????????????????????????????????????? | | ?????????????????????????????????????????????????? | | ?????????????????????????????????????????????????? | | ?????????????????????????????????????????????????? | | ?????????????????????????????????????????????????? | | ?????????????????####????????????????????????????? | | ????????????????## #????????????????????????????? | | ????????###??#### ##????????????????????????????? | | ???????## #??# ##????????????????????????????? | | ???????# #?## #????????????????????????????? | | ???????# #?# #####????????????????????????????? | | ???????# ### #####????????????????????????????? | | ???????# % #?????????????###????????????? | | ???????## % #???????????? ##???????????? | | ????????## ##??????##???? #???????????? | | ?????????###### ##?##### ##?? #???????????? | | ###?###??##??## ### #?# #????????????? | | ### ### #### ## ## #?????????????? | | ## #?????????????? | | % ### #?????????????? | | #####?# #?????????????? | | ##?????## @ ####??????????????? | | # ##??????# ##R #?????????????????? | | # ######?## ## ### % #?????????????????? | | ## ##?######?# #?????????????????? | | ##### #?# ###?????????????????? | | #?# ###???????????????????? | | #?# ##????????????????????? | | ### ## ### #????????????????????? | | # #?# #### ### #????##??????????????? | | # ##??## ### #???# ##?????????????? | | #####???## #?# #### #?????????????? | | #??????## #?# #?????????????? | | ??????# ### ##?????????????? | | ??????# ### ##R #??????????????? | | # ??????###??# #??????????????? | | ### ##???????????## ##??????????????? | | ??# ??????????????## #???????????????? | | ??# ???????????????# % #???????????????? | | ?? ??????????????# % %##???????????????? | | ???? ??????????????# #????????????????? | | ????######?????????## #????????????????? | | #??# ###????????## #????????????????? | | #?# " ?????????# ######????????????????? | | ## " ?????????# ##?????????????????????? | | #???????????????# ##??????????????????????? | +----------------------------------------------------+ Best States ------------- Heat Dissipation 25 Energy Generation 10 Energy Capacity 250 Matter Stores 300 Matter Capacity 300 Sight Range 16 Terrain Scan Density 10 Armor Coverage 150 Evasion (%) 44 Recoil Reduction 2 Item Schematics ----------------- None Robot Schematics ------------------ None Fabricated ------------ Nothing Alien Tech Used ----------------- None Achievements -------------- None Challenges ------------ None Game ------ Seed GammaArmorDeflector Manual? 0 Play Time 00:15:37 Cumulative 18.0 hours Start 2025.01.14 @ 13:07:09 End 2025.01.14 @ 13:31:52 Sessions 2 Manual Loads 0 Difficulty Rogue Special Mode None Game No. 26 Rogue 16 Adventurer 10 Explorer 0 Win Type - Total 0 Types 0/0/0/0/0/0/0/0/0 Lore% 11 Gallery% 17 Achievement% 17 Wizard Run 0 Options --------- Layout 2 ASCII 1 Keyboard 0 Movement Vi Keybinds 0 Fullscreen 2 Font 32/SmallcapsGlow Map View 50x44 Zoom Use 0% Tactical HUD 1 Map Filters NONE Filters LOW_CONTRAST(13,24,33) Steam 1 RUN: 40caa9e8-1a3f-4893-86b5-45bcc570b944